bitfinex/quotes_ETHUSD_20250923
["timestamp","ask_amount","ask_price","bid_price","bid_amount"]
[1758591807028,0.85071048,4178.4,4178.3,2.39331785]
[1758591807271,1.09991048,4178.4,4178.3,6.52031785]
[1758591807763,1.55871048,4178.4,4178.3,6.51831785]
[1758591808074,1.09991048,4178.4,4178.3,6.51831785]
[1758591808572,1.78033532,4178.4,4178.3,6.51831785]
[1758591808761,1.83214872,4178.4,4178.3,6.51831785]
[1758591809080,0.98143824,4178.4,4178.3,6.51831785]
[1758591811162,1.61978278,4178.4,4178.3,6.51831785]
[1758591811470,0.98143824,4178.4,4178.3,6.51831785]
[1758591811634,1.37068398,4178.4,4178.3,6.51831785]
[1758591812335,0.73223824,4178.4,4178.3,6.51831785]
[1758591812766,0.73223824,4178.4,4178.3,7.19481785]
[1758591813179,0.73223824,4178.4,4178.3,6.51831785]
[1758591813380,0.73223824,4178.4,4178.3,2.39331785]
[1758591813538,0.73223824,4178.4,4178.3,8.58531785]
[1758591814168,0.73223824,4178.4,4178.3,6.51631785]
[1758591814480,0.73223824,4178.4,4178.3,8.58531785]
[1758591815360,0.22162484,4178.4,4178.3,8.58531785]
[1758591815591,0.73243309,4178.4,4178.3,8.58531785]
[1758591815888,0.73243993,4178.4,4178.3,8.58531785]
[1758591816056,0.22162484,4178.4,4178.3,8.58531785]
[1758591817299,0.2492,4178.8,4178.7,2.39308875]
[1758591817596,0.73256122,4178.8,4178.7,4.115]
[1758591817777,0.73256122,4178.8,4178.7,4.235]
[1758591817979,1.44056122,4178.8,4178.7,4.235]
[1758591818696,1.44056122,4178.8,4178.7,6.62808875]
[1758591820102,0.22172411,4178.8,4178.7,6.50808875]
[1758591820399,0.22172411,4178.8,4178.7,6.62808875]
[1758591821579,0.00100001,4178.9,4178.8,2.39303149]
[1758591821781,0.22274251,4178.9,4178.8,2.39303149]
[1758591822681,0.00100001,4178.9,4178.8,3.18953149]
[1758591823068,0.00100001,4178.9,4178.8,2.51303149]
[1758591823397,0.00100001,4178.9,4178.8,6.62203149]
[1758591823398,0.70900001,4178.9,4178.8,6.62203149]
[1758591824665,0.70900001,4178.9,4178.8,2.51303149]
[1758591824865,0.70900001,4178.9,4178.8,6.62103149]
[1758591825066,0.70900001,4178.9,4178.8,2.51303149]
[1758591825513,0.70900001,4178.9,4178.8,6.62003149]
[1758591825710,0.00100001,4178.9,4178.8,6.62003149]
[1758591827263,0.00100001,4178.9,4178.8,6.86623149]
[1758591828084,0.00100001,4178.9,4178.8,6.62003149]
[1758591828666,0.00100001,4178.9,4178.8,7.33253149]
[1758591832086,0.00100001,4178.9,4178.8,8.12453149]
[1758591832684,0.00100001,4178.9,4178.8,8.12853149]
[1758591834816,0.00100001,4178.9,4178.8,11.12853149]
[1758591835382,0.00100001,4178.9,4178.8,7.02153149]
[1758591835586,0.00100001,4178.9,4178.8,13.18753149]
[1758591839632,0.00100001,4178.9,4178.8,7.02153149]
[1758591839834,0.00100001,4178.9,4178.8,13.18253149]
[1758591840326,0.00100001,4178.9,4178.8,6.30903149]
[1758591840513,0.00100001,4178.9,4178.8,12.47003149]
[1758591840891,0.69790001,4178.9,4178.8,5.39703149]
[1758591841123,0.69790001,4178.9,4178.8,9.48803149]
[1758591841324,0.00100001,4178.9,4178.8,9.48803149]
[1758591841706,0.00100001,4178.9,4178.8,9.73423149]
[1758591841901,0.00100001,4178.9,4178.8,10.99253149]
[1758591843433,0.00100001,4178.9,4178.8,10.28003149]
[1758591843839,0.00100001,4178.9,4178.8,6.18903149]
[1758591844001,0.23490001,4178.9,4178.8,12.35003149]
[1758591844397,0.00100001,4178.9,4178.8,12.35003149]
[1758591846215,0.00100001,4178.9,4178.8,13.06253149]
[1758591847145,0.00100001,4178.9,4178.8,12.59623149]
[1758591847620,0.00100001,4178.9,4178.8,6.18903149]
[1758591847821,0.23490001,4178.9,4178.8,12.34503149]
[1758591849220,0.00100001,4178.9,4178.8,12.34503149]
[1758591849615,0.00100001,4178.9,4178.8,19.59123149]
[1758591849831,0.00100001,4178.9,4178.8,20.05753149]
[1758591850026,0.00100001,4178.9,4178.8,19.59123149]
[1758591850354,0.00100001,4178.9,4178.8,19.34503149]
[1758591850749,0.00100001,4178.9,4178.8,19.59123149]
[1758591851051,0.00100001,4178.9,4178.8,19.71123149]
[1758591852118,0.00100001,4178.9,4178.8,20.17753149]
[1758591853019,0.00100001,4178.9,4178.8,19.45903149]
[1758591854559,0.23490001,4178.9,4178.8,19.45903149]
[1758591854934,0.23490001,4178.9,4178.8,13.30903149]
[1758591855261,0.69790001,4178.9,4178.8,17.38603149]
[1758591855420,0.66390001,4178.9,4178.8,9.51703149]
[1758591855625,0.66390001,4178.9,4178.8,13.59403149]
[1758591856762,0.66390001,4178.9,4178.8,6.59403149]
[1758591857925,0.66390001,4178.9,4178.8,2.51703149]
[1758591858354,0.66390001,4178.9,4178.8,6.59303149]
[1758591862280,0.66390001,4178.9,4178.8,2.51703149]
[1758591862588,0.66390001,4178.9,4178.8,6.59003149]
[1758591864185,0.00100001,4178.9,4178.8,6.59003149]
[1758591864488,0.24160001,4178.9,4178.8,6.59003149]
[1758591864684,0.68070001,4178.9,4178.8,6.59003149]
[1758591867759,0.68070001,4178.9,4178.8,6.58403149]
[1758591877606,0.00100001,4178.9,4178.8,6.58403149]
[1758591877798,0.00100001,4178.9,4178.8,6.82483149]
[1758591878574,0.00100001,4178.9,4178.8,6.58403149]
[1758591880528,0.00100001,4178.9,4178.8,7.29513149]
[1758591881026,0.68070001,4178.9,4178.8,6.57403149]
[1758591881488,0.00100001,4178.9,4178.8,6.81483149]
[1758591881692,0.00100001,4178.9,4178.8,7.28513149]
[1758591883720,0.00100001,4178.9,4178.8,6.81483149]
[1758591884308,0.00100001,4178.9,4178.8,7.28513149]
[1758591884713,0.00100001,4178.9,4178.8,6.81483149]
[1758591885703,0.00100001,4178.9,4178.8,7.27213149]
[1758591886212,0.00100001,4178.9,4178.8,6.81483149]
[1758591886411,0.00100001,4178.9,4178.8,7.27213149]
[1758591887894,0.00100001,4178.9,4178.8,11.06413149]
[1758591893235,0.00100001,4178.9,4178.8,10.94413149]
[1758591893419,0.00100001,4178.9,4178.8,11.06413149]
[1758591895224,0.00100001,4178.9,4178.8,12.66883149]
[1758591895427,0.00100001,4178.9,4178.8,10.35903149]
[1758591895624,0.00100001,4178.9,4178.8,8.37803149]
[1758591895830,0.00100001,4178.9,4178.8,12.42803149]
[1758591896348,0.70540001,4178.9,4178.8,11.63603149]
[1758591896652,0.70540001,4178.9,4178.8,2.51703149]
[1758591896949,0.24040001,4178.9,4178.8,16.56703149]
[1758591897150,0.70540001,4178.9,4178.8,16.56703149]
[1758591898037,0.70540001,4178.9,4178.8,12.51703149]
[1758591898253,0.70540001,4178.9,4178.8,16.56703149]
[1758591898910,0.70540001,4178.9,4178.8,12.51703149]
[1758591899140,0.70540001,4178.9,4178.8,16.56703149]
[1758591899527,0.00100001,4178.9,4178.8,16.56703149]
[1758591899746,0.00100001,4178.9,4178.8,16.81143149]
[1758591900350,0.00100001,4178.9,4178.8,17.60343149]
[1758591900520,0.00100001,4178.9,4178.8,18.06073149]
[1758591901634,0.00100001,4178.9,4178.8,11.06073149]
[1758591902354,0.00100001,4178.9,4178.8,10.60343149]
[1758591902524,0.00100001,4178.9,4178.8,10.35903149]
[1758591904660,0.00100001,4178.9,4178.8,11.06073149]
[1758591906414,0.00100001,4178.9,4178.8,18.06073149]
[1758591910094,0.00100001,4178.9,4178.8,17.35903149]
[1758591910293,0.00100001,4178.9,4178.8,13.30903149]
[1758591910450,0.70540001,4178.9,4178.8,9.51703149]
[1758591910650,0.70540001,4178.9,4178.8,15.63503149]
[1758591910887,0.70540001,4178.9,4178.8,18.63503149]
[1758591911101,0.70540001,4178.9,4178.8,12.51703149]
[1758591911256,0.70540001,4178.9,4178.8,9.56703149]
[1758591912091,0.00100001,4178.9,4178.8,9.56703149]
[1758591912805,0.24040001,4178.9,4178.8,9.56703149]
[1758591913320,0.24040001,4178.9,4178.8,5.51703149]
[1758591913321,0.70540001,4178.9,4178.8,5.51703149]
[1758591913499,0.70540001,4178.9,4178.8,11.63503149]
[1758591914706,0.24040001,4178.9,4178.8,11.63503149]
[1758591914994,0.24040001,4178.9,4178.8,9.56703149]
[1758591915196,0.00100001,4178.9,4178.8,9.56703149]
[1758591916187,0.00100001,4178.9,4178.8,16.56703149]
[1758591916873,0.23100001,4178.9,4178.8,16.56703149]
[1758591918001,0.00100001,4178.9,4178.8,16.56703149]
[1758591918170,0.00100001,4178.9,4178.8,18.03393149]
[1758591918700,0.00100001,4178.9,4178.8,17.58733149]
[1758591919085,0.00100001,4178.9,4178.8,17.91393149]
[1758591919291,0.00100001,4178.9,4178.8,18.03393149]
[1758591921260,0.00100001,4178.9,4178.8,11.03393149]
[1758591922802,0.00100001,4178.9,4178.8,12.65433149]
[1758591925003,0.00100001,4178.9,4178.8,10.58633149]
[1758591925178,0.00100001,4178.9,4178.8,12.42603149]
[1758591926076,0.00100001,4178.9,4178.8,19.42603149]
[1758591926275,0.69380001,4178.9,4178.8,13.30903149]
[1758591926479,0.69380001,4178.9,4178.8,19.42603149]
[1758591927669,0.69380001,4178.9,4178.8,13.30903149]
[1758591928076,0.69380001,4178.9,4178.8,19.42603149]
[1758591928395,0.23100001,4178.9,4178.8,19.42603149]
[1758591929116,0.00100001,4178.9,4178.8,19.42603149]
[1758591929757,0.00100001,4178.9,4178.8,19.65433149]
[1758591931469,0.00100001,4178.9,4178.8,12.65433149]
[1758591932662,0.00100001,4178.9,4178.8,13.10093149]
[1758591933215,0.00100001,4178.9,4178.8,6.30903149]
[1758591933377,0.69380001,4178.9,4178.8,10.35803149]
[1758591933587,0.69380001,4178.9,4178.8,12.42603149]
[1758591934694,0.69380001,4178.9,4178.8,6.30903149]
[1758591934866,0.69380001,4178.9,4178.8,12.42603149]
[1758591936123,0.23100001,4178.9,4178.8,12.42603149]
[1758591936323,0.001,4179.4,4179.3,2.39274519]
[1758591936511,0.001,4179.4,4179.3,6.44174519]
[1758591936711,0.001,4179.4,4179.3,6.56174519]
[1758591936917,0.001,4179.4,4179.3,10.35374519]
[1758591937088,0.001,4179.4,4179.3,10.58204519]
[1758591939028,0.001,4179.4,4179.3,10.35374519]
[1758591940427,0.6938,4179.4,4179.3,5.51274519]
[1758591940626,0.6938,4179.4,4179.3,6.56174519]
[1758591941129,0.6938,4179.4,4179.3,2.51274519]
[1758591941314,0.6938,4179.4,4179.3,6.56174519]
[1758591943443,0.001,4179.4,4179.3,6.56174519]
[1758591943645,0.6938,4179.4,4179.3,6.56174519]
[1758591946350,0.4638,4179.4,4179.3,6.56174519]
[1758591946649,0.001,4179.4,4179.3,7.35374519]
[1758591946850,0.001,4179.4,4179.3,7.59374519]
[1758591947452,0.001,4179.4,4179.3,7.35374519]
[1758591947756,0.001,4179.4,4179.3,9.42074519]
[1758591948115,0.001,4179.4,4179.3,9.66074519]
[1758591948553,0.001,4179.4,4179.3,16.66074519]
[1758591948724,0.001,4179.4,4179.3,16.42074519]
[1758591949234,0.001,4179.4,4179.3,19.66074519]
[1758591949438,0.001,4179.4,4179.3,20.09174519]
[1758591950522,0.001,4179.4,4179.3,19.66074519]
[1758591951718,0.001,4179.4,4179.3,13.09174519]
[1758591955459,0.001,4179.4,4179.3,12.66074519]
[1758591955822,0.001,4179.4,4179.3,13.09174519]
[1758591956766,0.001,4179.4,4179.3,20.09174519]
[1758591958324,0.001,4179.4,4179.3,19.66074519]
[1758591958526,0.001,4179.4,4179.3,20.09174519]
[1758591959125,0.001,4179.4,4179.3,13.30474519]
[1758591959324,0.001,4179.4,4179.3,19.41974519]
[1758591959865,0.001,4179.4,4179.3,13.30474519]
[1758591960063,0.001,4179.4,4179.3,19.41974519]
[1758591960267,0.7002,4179.4,4179.3,13.30474519]
[1758591960443,0.7002,4179.4,4179.3,19.41974519]
[1758591961237,0.7002,4179.4,4179.3,9.51274519]
[1758591961438,0.7002,4179.4,4179.3,13.55974519]
[1758591961863,0.7002,4179.4,4179.3,6.55974519]
[1758591963374,0.001,4179.4,4179.3,6.55974519]
[1758591964273,0.001,4179.4,4179.3,9.55974519]
[1758591964498,0.001,4179.4,4179.3,10.59174519]
[1758591965067,0.001,4179.4,4179.3,10.35174519]
[1758591966177,0.001,4179.4,4179.3,18.02274519]
[1758591966675,1e-08,4179.9,4179.7,5.3925162]
[1758591966839,1e-08,4179.9,4179.8,11.50745896]
[1758591967035,1e-08,4179.9,4179.8,11.86745896]
[1758591967441,1e-08,4179.9,4179.8,12.29845896]
[1758591968241,1e-08,4179.9,4179.8,11.86745896]
[1758591969074,1e-08,4179.9,4179.8,5.51245896]
[1758591969241,0.69920001,4179.9,4179.8,12.41945896]
[1758591969643,0.46760001,4179.9,4179.8,12.41945896]
[1758591970244,1e-08,4179.9,4179.8,12.41945896]
[1758591971066,0.46760001,4179.9,4179.8,12.41945896]
[1758591971277,0.69920001,4179.9,4179.8,6.30445896]
[1758591971584,0.69920001,4179.9,4179.8,11.62745896]
[1758591973485,1e-08,4179.9,4179.8,11.62745896]
[1758591974282,1e-08,4179.9,4179.8,5.51245896]
[1758591974477,1e-08,4179.9,4179.8,9.55845896]
[1758591975168,0.69920001,4179.9,4179.8,9.55845896]
[1758591975375,0.69920001,4179.9,4179.8,5.51245896]
[1758591975574,0.69920001,4179.9,4179.8,9.55845896]
[1758591977181,0.46760001,4179.9,4179.8,9.55845896]
[1758591978791,0.71740001,4179.9,4179.8,9.55845896]
[1758591979313,0.71740001,4179.9,4179.8,16.55845896]
[1758591979814,0.46760001,4179.9,4179.8,16.55845896]
[1758591980712,0.71740001,4179.9,4179.8,16.55845896]
[1758591981804,0.46760001,4179.9,4179.8,16.55845896]
[1758591982004,1e-08,4179.9,4179.8,16.55845896]
[1758591983316,1e-08,4179.9,4179.8,16.79675896]
[1758591983484,1e-08,4179.9,4179.8,17.26605896]
[1758591983680,1e-08,4179.9,4179.8,16.79675896]
[1758591984115,1e-08,4179.9,4179.8,16.55845896]
[1758591986330,1e-08,4179.9,4179.8,9.55845896]
[1758591986535,1e-08,4179.9,4179.8,9.79675896]
[1758591988936,1e-08,4179.9,4179.8,10.58875896]
[1758591989160,1e-08,4179.9,4179.8,11.05805896]
[1758591989445,0.02,4182.9,4182.2,0.792]
[1758591989631,0.02,4182.9,4182.8,3.18274304]
[1758591989826,0.02,4182.9,4182.8,3.94565047]
[1758591990004,1e-08,4182.9,4182.8,8.82462192]
[1758591990200,1e-08,4182.9,4182.8,7.62934304]
[1758591991298,1e-08,4182.9,4182.8,6.18274304]
[1758591991498,1e-08,4182.9,4182.8,12.29974304]
[1758591991732,0.2498,4183.3,4183.2,2.39051443]
[1758591991931,2.8998358,4184.8,4183.5,2.39029821]
[1758591992231,2.38961397,4184.8,4183.6,4.05]
[1758591992785,0.7026,4183.8,4183.6,6.44028102]
[1758591992977,0.7026,4183.7,4183.6,4.05]
[1758591993465,0.7026,4183.7,4183.6,2.39028587]
[1758591993628,2.40956707,4184.9,4183.6,4.048]
[1758591993825,0.7026,4183.8,4183.7,2.39022874]
[1758591994757,0.7026,4183.8,4183.6,11.048]
[1758591994963,2.38968438,4184.7,4183.7,2.39022874]
[1758591995179,2.38965971,4184.7,4183.8,4.047]
[1758591995628,0.4728,4183.9,4183.6,7.0]
[1758591995828,0.7026,4183.8,4183.6,7.0]
[1758591996034,0.7026,4183.7,4183.6,7.0]
[1758591996337,0.7026,4183.7,4183.6,13.43628587]
[1758591996541,0.7026,4183.7,4183.6,6.43628587]
[1758591997563,0.4528,4183.7,4183.6,6.43628587]
[1758591997738,0.02,4183.9,4183.8,2.39017161]
[1758591998065,0.7226,4183.9,4183.8,2.39017161]
[1758591998229,0.7226,4183.9,4183.8,6.43517161]
[1758591998559,0.7226,4183.9,4183.4,4.53026619]
[1758591998747,0.7026,4183.8,4183.4,4.043]
[1758591998940,0.7026,4183.7,4183.6,2.39028568]
[1758591999141,0.7026,4183.7,4183.6,6.43328568]
[1758591999364,0.7026,4183.7,4183.6,6.55248568]
[1758591999729,0.02,4183.9,4183.6,6.55248568]
[1758591999730,0.02,4183.9,4183.8,2.39017161]
[1758592000027,0.02,4183.9,4183.8,6.43317161]
[1758592000664,0.02,4183.9,4183.8,4.043]
[1758592000867,0.7226,4183.9,4183.6,0.1192]
[1758592001181,0.4528,4183.8,4183.6,2.9702]
[1758592001331,0.7026,4183.7,4183.6,0.1192]
[1758592002344,0.7026,4183.7,4182.0,0.2383]
[1758592002544,3.21205527,4183.7,4183.1,0.1192]
[1758592002855,2.39028587,4183.6,4182.9,4.1622]
[1758592003168,3.09288587,4183.6,4182.9,0.1192]
[1758592004228,2.39037629,4183.5,4182.9,0.1192]
[1758592004673,0.7026,4183.4,4182.9,0.1192]
[1758592005038,3.09300517,4183.4,4182.9,0.1192]
[1758592005377,2.50970131,4183.3,4182.7,0.1192]
[1758592005768,3.04732498,4183.2,4182.7,0.1192]
[1758592005945,0.6568,4183.2,4182.7,0.1192]
[1758592006577,0.6568,4183.1,4182.7,0.1192]
[1758592007044,0.6568,4183.0,4182.7,0.1192]
[1758592007246,0.6568,4182.9,4182.8,0.004]
[1758592008489,0.6568,4182.9,4182.8,2.39474304]
[1758592008689,0.6568,4182.9,4182.8,0.004]
[1758592009053,0.1192,4183.3,4182.8,0.004]
[1758592009255,0.1192,4183.8,4183.2,0.1192]
[1758592009458,0.021,4183.9,4183.3,0.26410457]
[1758592009691,0.021,4183.9,4183.7,0.1192]
[1758592009998,0.021,4183.9,4183.8,2.39017161]
[1758592010202,0.021,4183.9,4183.8,2.63037161]
[1758592011263,0.021,4183.9,4183.8,2.39017161]
[1758592011895,0.021,4183.9,4182.8,0.004]
[1758592011896,0.6778,4183.9,4182.8,0.004]
[1758592012110,0.6778,4183.9,4183.0,4.042]
[1758592012289,0.6568,4183.8,4183.5,2.39032307]
[1758592012661,0.6568,4183.7,4183.3,2.39041833]
[1758592012890,0.6568,4183.6,4183.5,2.39034301]
[1758592013290,0.6568,4183.6,4183.1,2.39051679]
[1758592013493,0.4288,4183.5,4183.3,2.39040881]
[1758592013687,0.4288,4183.5,4183.4,2.39040015]
[1758592015112,0.4288,4183.5,4183.1,4.042]
[1758592015113,0.6568,4183.5,4183.1,4.042]
[1758592015317,0.6568,4183.4,4183.2,2.39048902]
[1758592015481,0.228,4183.4,4183.3,2.39045441]
[1758592015812,0.021,4183.9,4183.4,2.39038384]
[1758592015998,0.021,4183.9,4183.1,6.43254478]
[1758592015999,0.228,4183.8,4183.2,2.39051443]
[1758592016381,0.228,4183.8,4183.3,2.39045729]
[1758592016578,0.228,4183.8,4183.1,4.042]
[1758592016803,0.228,4183.8,4183.2,2.39048799]
[1758592017115,0.228,4183.8,4183.3,2.39044129]
[1758592017295,0.51078337,4183.7,4183.3,2.39044129]
[1758592017496,0.4288,4183.6,4183.4,2.39039091]
[1758592018304,0.5115604,4183.5,4183.4,2.39039091]
[1758592018806,0.5115604,4183.5,4183.1,4.042]
[1758592019012,0.4288,4183.6,4183.1,4.042]
[1758592019318,1.39070542,4183.5,4183.1,4.042]
[1758592019495,1.39070542,4183.4,4182.9,2.39065739]
[1758592019683,1.39070542,4183.3,4182.9,6.4326438]
[1758592019885,0.85381308,4183.8,4182.9,6.4326438]
[1758592019886,1.39070542,4183.2,4183.0,2.39060564]
[1758592020133,0.73390542,4183.1,4183.0,2.39060564]
[1758592020619,0.73390542,4183.1,4182.9,4.042]
[1758592020822,0.51154955,4183.0,4182.9,4.042]
[1758592021721,1.39066602,4183.0,4182.8,0.004]
[1758592021919,0.73386602,4182.9,4182.8,0.1232]
[1758592022622,1.16266602,4182.9,4182.8,0.1232]
[1758592022831,1.39066602,4182.9,4182.8,0.1232]
[1758592023326,1.16266602,4182.9,4182.8,0.1232]
[1758592023686,0.73386602,4182.9,4182.8,0.1232]
[1758592026404,0.73486602,4182.9,4182.8,0.1232]
[1758592026718,1.39166602,4182.9,4182.8,0.1232]
[1758592027031,1.16366602,4182.9,4182.8,0.1232]
[1758592029023,0.73486602,4182.9,4182.8,0.1232]
[1758592031637,3.1255519,4182.9,4182.8,0.004]
[1758592031939,7.03494153,4182.9,4182.8,0.004]
[1758592032300,7.88875461,4182.9,4182.8,0.004]
[1758592032527,7.03494153,4182.9,4182.8,0.004]
[1758592033032,7.0348374,4182.9,4182.8,0.004]
[1758592041164,7.03425643,4182.9,4182.8,0.004]
[1758592042457,6.90112358,4182.9,4182.8,0.004]
[1758592042761,7.03429029,4182.9,4182.8,0.004]
[1758592044446,6.24432358,4182.9,4182.8,0.004]
[1758592044651,10.28632358,4182.9,4182.8,0.004]
[1758592045065,10.28632358,4182.9,4182.8,0.2435]
[1758592045066,3.8536377,4182.9,4182.8,0.2435]
[1758592045385,0.001,4182.9,4182.8,0.708]
[1758592046962,0.001,4182.9,4182.8,0.004]
[1758592047543,1.20313571,4182.9,4182.8,0.004]
[1758592047726,1.54451584,4182.9,4182.8,0.004]
[1758592047938,3.71302159,4182.9,4182.8,0.004]
[1758592048284,1.54463218,4182.9,4182.8,0.004]
[1758592048435,0.85443218,4182.9,4182.8,0.004]
[1758592049437,1.54463218,4182.9,4182.8,0.004]
[1758592049837,3.93531806,4182.9,4182.8,0.004]
[1758592050574,3.69121806,4182.9,4182.8,0.004]
[1758592050736,6.93531806,4182.9,4182.8,0.004]
[1758592051066,7.70905714,4182.9,4182.8,0.004]
[1758592051278,7.06871763,4182.9,4182.8,0.004]
[1758592051659,7.70914656,4182.9,4182.8,0.004]
[1758592051830,7.06871763,4182.9,4182.8,0.004]
[1758592052035,11.11071763,4182.9,4182.8,0.004]
[1758592052714,11.7511612,4182.9,4182.8,0.004]
[1758592053209,11.11071763,4182.9,4182.8,0.004]
[1758592053563,11.96453071,4182.9,4182.8,0.004]
[1758592054464,11.11071763,4182.9,4182.8,0.004]
[1758592054669,6.37851763,4182.9,4182.8,0.004]
[1758592054870,12.48751763,4182.9,4182.8,0.004]
[1758592055565,12.93361763,4182.9,4182.8,0.004]
[1758592056107,13.17771763,4182.9,4182.8,0.004]
[1758592057502,20.23771763,4182.9,4182.8,0.004]
[1758592059794,21.09153071,4182.9,4182.8,0.004]
[1758592062189,21.02971763,4182.9,4182.8,0.004]
[1758592063504,22.3121965,4182.9,4182.8,0.004]
[1758592064111,21.02971763,4182.9,4182.8,0.004]
[1758592064485,10.92863175,4182.9,4182.8,0.004]
[1758592064819,15.73014152,4182.9,4182.8,0.708]
[1758592065173,4.77623218,4182.9,4182.8,3.09874304]
[1758592065380,0.51304301,4182.9,4182.8,3.09874304]
[1758592065673,0.001,4182.9,4182.8,3.09874304]
[1758592065984,0.001,4182.9,4182.8,3.21794304]
[1758592069242,0.001,4182.9,4182.8,0.8255]
[1758592069613,0.001,4182.9,4182.8,0.3627]
[1758592069935,0.001,4182.9,4182.8,0.2435]
[1758592070812,0.001,4182.9,4182.8,2.63424304]
[1758592071045,0.001,4182.9,4182.8,3.09704304]
[1758592071248,0.001,4182.9,4182.8,0.2435]
[1758592071611,0.001,4182.9,4182.8,2.63424304]
[1758592072929,0.001,4182.9,4182.8,0.2435]
[1758592073335,6.29156443,4182.9,4182.8,0.004]
[1758592073726,0.001,4182.9,4182.8,0.004]
[1758592073936,0.001,4182.9,4182.8,0.2512]
[1758592075159,0.001,4182.9,4182.8,0.004]
[1758592075860,0.001,4182.9,4182.8,0.2512]
[1758592077655,0.001,4182.9,4182.8,0.004]
[1758592077857,10.33156443,4182.9,4182.8,0.004]
[1758592078074,4.1602,4182.9,4182.8,0.004]
[1758592078245,10.45076443,4182.9,4182.8,0.004]
[1758592078449,10.96300275,4182.9,4182.8,0.004]
[1758592078646,10.45076443,4182.9,4182.8,0.004]
[1758592079345,10.96299128,4182.9,4182.8,0.004]
[1758592081743,10.96299128,4182.9,4182.8,0.2512]
[1758592081744,4.67242685,4182.9,4182.8,0.2512]
[1758592081957,4.041,4182.9,4182.8,0.2512]
[1758592082348,4.041,4182.9,4182.8,0.004]
[1758592082545,10.33156443,4182.9,4182.8,0.004]
[1758592083285,4.041,4182.9,4182.8,0.2512]
[1758592085353,4.041,4182.9,4182.8,2.64194304]
[1758592085657,4.041,4182.9,4182.8,3.22394304]
[1758592087373,0.001,4182.9,4182.8,3.22394304]
[1758592087691,0.001,4182.9,4182.8,0.3704]
[1758592087890,0.001,4182.9,4182.8,0.1232]
[1758592088049,0.4683,4182.9,4182.8,0.004]
[1758592088254,0.7067,4182.9,4182.8,0.004]
[1758592088679,0.98069819,4182.9,4182.8,0.004]
[1758592089014,1.21911421,4182.9,4182.8,0.004]
[1758592089289,1.44152961,4182.9,4182.8,0.004]
[1758592089588,0.73582961,4182.9,4182.8,0.004]
[1758592089888,4.77482961,4182.9,4182.8,0.004]
[1758592092785,4.77482961,4182.9,4182.8,0.2512]
[1758592093305,4.77482961,4182.9,4182.8,0.714]
[1758592093478,4.55241421,4182.9,4182.8,3.10474304]
[1758592093673,4.55241421,4182.9,4182.8,0.714]
[1758592094293,0.51341421,4182.9,4182.8,0.714]
[1758592094499,0.51341421,4182.9,4182.8,0.2512]
[1758592094873,0.51341421,4182.9,4182.8,2.64194304]
[1758592095209,0.73632862,4182.9,4182.8,2.64194304]
[1758592095706,0.51341421,4182.9,4182.8,3.09924304]
[1758592095895,0.001,4182.9,4182.8,3.21844304]
[1758592098718,0.001,4182.9,4182.8,2.76114304]
[1758592099024,0.001,4182.9,4182.8,3.21494304]
[1758592099320,0.001,4182.9,4182.8,3.23885047]
[1758592099479,0.001,4182.9,4182.8,7.03085047]
[1758592099679,0.001,4182.9,4182.8,11.04494304]
[1758592105248,0.001,4182.9,4182.8,7.00694304]
[1758592105442,0.001,4182.9,4182.8,13.11094304]
[1758592105741,0.001,4182.9,4182.8,11.04394304]
[1758592105958,0.001,4182.9,4182.8,13.11094304]
[1758592107728,0.001,4182.9,4182.8,7.00694304]
[1758592107942,0.001,4182.9,4182.8,13.11094304]
[1758592109030,0.001,4182.9,4182.8,11.04394304]
[1758592109238,0.001,4182.9,4182.8,12.65714304]
[1758592110253,0.001,4182.9,4182.8,13.11094304]
[1758592113568,0.001,4182.9,4182.8,12.40894304]
[1758592113961,0.001,4182.9,4182.8,12.64214304]
[1758592114164,0.001,4182.9,4182.8,13.09594304]
[1758592114735,0.001,4182.9,4182.8,12.64214304]
[1758592117342,0.001,4182.9,4182.8,13.09594304]
[1758592118271,0.001,4182.9,4182.8,12.64214304]
[1758592119635,0.001,4182.9,4182.8,6.53914304]
[1758592119961,0.001,4182.9,4182.8,10.57514304]
[1758592121282,0.001,4182.9,4182.8,10.34194304]
[1758592121457,0.001,4182.9,4182.8,10.57514304]
[1758592122380,0.001,4182.9,4182.8,17.57514304]
[1758592123987,0.001,4182.9,4182.8,13.30594304]
[1758592124303,0.001,4182.9,4182.8,19.40794304]
[1758592124465,0.6976,4182.9,4182.8,9.51394304]
[1758592124957,0.6976,4182.9,4182.8,13.54894304]
[1758592126281,0.001,4182.9,4182.8,13.54894304]
[1758592126483,0.001,4182.9,4182.8,13.78344304]
[1758592126686,0.001,4182.9,4182.8,14.57544304]
[1758592127175,0.001,4182.9,4182.8,7.57544304]
[1758592127790,0.001,4182.9,4182.8,2.51394304]
[1758592127958,0.6917,4182.9,4182.8,6.54894304]
[1758592128969,0.001,4182.9,4182.8,6.54894304]
[1758592129558,0.001,4182.9,4182.8,6.78344304]
[1758592129892,0.001,4182.9,4182.8,6.54894304]
[1758592130897,0.001,4182.9,4182.8,6.78344304]
[1758592132277,0.001,4182.9,4182.8,10.57544304]
[1758592132493,0.001,4182.9,4182.8,11.00594304]
[1758592132986,0.001,4182.9,4182.8,6.30594304]
[1758592133192,0.001,4182.9,4182.8,6.54794304]
[1758592133391,0.6917,4182.9,4182.8,8.61494304]
[1758592135087,0.001,4182.9,4182.8,8.61494304]
[1758592135296,0.001,4182.9,4182.8,10.07194304]
[1758592136260,0.001,4182.9,4182.8,9.64144304]
[1758592137001,0.001,4182.9,4182.8,19.64144304]
[1758592137175,0.001,4182.9,4182.8,20.07194304]
[1758592138577,0.001,4182.9,4182.8,13.30594304]
[1758592138784,0.001,4182.9,4182.8,19.40694304]
[1758592138979,0.001,4182.9,4182.8,19.64144304]
[1758592139375,0.001,4182.9,4182.8,20.07194304]
[1758592140589,0.001,4182.9,4182.8,19.64144304]
[1758592141700,0.001,4182.9,4182.8,12.64144304]
[1758592142100,0.001,4182.9,4182.8,12.40694304]
[1758592142910,0.001,4182.9,4182.8,6.54044304]
[1758592143227,0.001,4182.9,4182.8,12.40494304]
[1758592143520,0.001,4182.9,4182.8,12.63944304]